Service area,Service sub division,TVBC Service,Expense type,Detailed expense type,TVBC account code,Date Paid,Transaction Reference, Nett Value ,Supplier Name
External Trading Accounts,Business Parks,Premises & Asset Management,Supplies & Services,Services,Professional Fees,16/04/2020,301390,-27000,Kier Ventures Ltd
Central Services to the Public,Management & Support Services,Premises & Asset Management,Premises related Expenditure,Energy Costs,Gas,09/04/2020,295711,-903.68,Total Gas & Power Ltd
Central Services to the Public,Management & Support Services,Premises & Asset Management,Third Party Payments,Other Establishments,Contract Catering,30/04/2020,302193,-599.37,Edwards And Ward Ltd
Environmental & Regulatory,Community Development,Community and Leisure ,Supplies & Services,Grants & Subscriptions,Grants,02/04/2020,297830,500,Veterans In Action
Environmental & Regulatory,Community Development,Community and Leisure ,Supplies & Services,Grants & Subscriptions,Grants,09/04/2020,299187,500,North Baddesley Parish Council
Environmental & Regulatory,Community Development,Community and Leisure ,Supplies & Services,Grants & Subscriptions,Grants,02/04/2020,297818,500,Citizen'S Advice Test Valley
Environmental & Regulatory,Community Development,Community and Leisure ,Supplies & Services,Grants & Subscriptions,Grants,02/04/2020,297829,500,Stockbridge Parish Council
Environmental & Regulatory,Community Development,Community and Leisure ,Supplies & Services,Grants & Subscriptions,Grants,09/04/2020,299165,500,Barton Stacey Parish Council
Environmental & Regulatory,Community Development,Community and Leisure ,Supplies & Services,Grants & Subscriptions,Grants,09/04/2020,299192,500,Romsey Community School
Environmental & Regulatory,Community Development,Community and Leisure ,Supplies & Services,Grants & Subscriptions,Grants,09/04/2020,299196,500,Nether Wallop Parish Council
Environmental & Regulatory,Community Development,Community and Leisure ,Supplies & Services,Grants & Subscriptions,Grants,09/04/2020,299197,500,Kings Somborne Parish Council
Environmental & Regulatory,Community Development,Community and Leisure ,Supplies & Services,Grants & Subscriptions,Grants,09/04/2020,299198,500,Wherwell Parish Council
Environmental & Regulatory,Community Development,Community and Leisure ,Supplies & Services,Grants & Subscriptions,Grants,09/04/2020,299200,500,Thruxton Parish Council
Environmental & Regulatory,Community Development,Community and Leisure ,Supplies & Services,Grants & Subscriptions,Grants,09/04/2020,299201,500,Kimpton Parish Council
Environmental & Regulatory,Community Development,Community and Leisure ,Supplies & Services,Grants & Subscriptions,Grants,09/04/2020,299202,500,Chilbolton Parish Council
Environmental & Regulatory,Community Development,Community and Leisure ,Supplies & Services,Grants & Subscriptions,Grants,09/04/2020,299206,500,Valley Park Parish Council
Environmental & Regulatory,Community Development,Community and Leisure ,Supplies & Services,Grants & Subscriptions,Grants,09/04/2020,299207,500,Over Wallop Parish Council
Environmental & Regulatory,Community Development,Community and Leisure ,Supplies & Services,Grants & Subscriptions,Grants,09/04/2020,299208,500,Michelmersh & Timsbury Parish Council
Environmental & Regulatory,Community Development,Community and Leisure ,Supplies & Services,Grants & Subscriptions,Grants,16/04/2020,301581,500,Longstock Parish Council
Environmental & Regulatory,Community Development,Community and Leisure ,Supplies & Services,Grants & Subscriptions,Grants,23/04/2020,302305,500,Andover Crisis & Support Centre
Environmental & Regulatory,Community Development,Community and Leisure ,Supplies & Services,Grants & Subscriptions,Grants,02/04/2020,297833,500,The Qc Foundation
Environmental & Regulatory,Community Development,Community and Leisure ,Supplies & Services,Grants & Subscriptions,Grants,09/04/2020,299191,500,Idea Reality Ltd
Environmental & Regulatory,Community Development,Community and Leisure ,Supplies & Services,Grants & Subscriptions,Grants,09/04/2020,299203,500,Our Andover Cic
Environmental & Regulatory,Community Development,Community and Leisure ,Supplies & Services,Grants & Subscriptions,Grants,09/04/2020,299205,500,Romsey Foodbank
Environmental & Regulatory,Community Development,Community and Leisure ,Supplies & Services,Grants & Subscriptions,Grants,16/04/2020,301579,500,Picket Piece Residents Association
Environmental & Regulatory,Community Development,Community and Leisure ,Supplies & Services,Grants & Subscriptions,Grants,23/04/2020,302304,500,Freedom Church
Environmental & Regulatory,Community Development,Community and Leisure ,Supplies & Services,Grants & Subscriptions,Grants,23/04/2020,302308,500,Longparish Community Association
Environmental & Regulatory,Community Development,Community and Leisure ,Supplies & Services,Grants & Subscriptions,Grants,30/04/2020,303074,500,Romsey Baptist Church
Cultural & Related,Open Spaces,Environmental,Supplies & Services,"Equipment, Furniture & Materials",Purchase Equip + Materials,23/04/2020,301592,422.1,Travis Perkins Trading Co Ltd
Environmental & Regulatory,Waste management,Environmental,Transport Related Expenditure,Direct Transport Costs,Repair Materials,30/04/2020,302621,427.2,Md Services (Andover) Ltd
Central Services to the Public,Management & Support Services,Premises & Asset Management,Premises related Expenditure,Energy Costs,Gas,23/04/2020,302246,428.17,Total Gas & Power Ltd
Cultural & Related,Open Spaces,Environmental,Transport Related Expenditure,Direct Transport Costs,Repair Materials,09/04/2020,298321,431.95,Hunt Forest Group Ltd
Cultural & Related,Open Spaces,Environmental,Supplies & Services,"Equipment, Furniture & Materials",Purchase Equip + Materials,23/04/2020,302231,434.24,Atf Supplies Nationwide Ltd
Cultural & Related,Recreation & Sport,Premises & Asset Management,Premises related Expenditure,Energy Costs,Gas,23/04/2020,302233,441.76,Total Gas & Power Ltd
Cultural & Related,Open Spaces,Community and Leisure ,Premises related Expenditure,Grounds Maintenance Costs,Gm - Additional Works,23/04/2020,301352,450,Proludic Ltd
Central Services to the Public,Local Tax Collection,Revenues,Employees,Indirect Employee Expenses,Lodging Allowance ,23/04/2020,302306,450,Personal Data - Data Protection Act 1998
Central Services to the Public,Local Tax Collection,Revenues,Supplies & Services,"Equipment, Furniture & Materials",Purchase Equip + Materials,23/04/2020,302306,99.98,Personal Data - Data Protection Act 1998
Central Services to the Public,Management & Support Services,Premises & Asset Management,Transport Related Expenditure,Direct Transport Costs,Petrol,09/04/2020,298290,4.78,Fuel Card Services Ltd
Cultural & Related,Open Spaces,Environmental,Transport Related Expenditure,Direct Transport Costs,Petrol,09/04/2020,298290,454.29,Fuel Card Services Ltd
Housing Services,Homelessness,Housing and Environmental Health ,Supplies & Services,Grants & Subscriptions,Grants,23/04/2020,301841,552.16,Aster Group
External Trading Accounts,Business Parks,Premises & Asset Management,Supplies & Services,Communications & Computing,Land Line Telephone Charges,02/04/2020,297789,26.55,Virgin Media Payments Ltd
Cultural & Related,Culture & Heritage,Premises & Asset Management,Supplies & Services,Communications & Computing,Land Line Telephone Charges,02/04/2020,297789,26,Virgin Media Payments Ltd
Cultural & Related,Culture & Heritage,Premises & Asset Management,Supplies & Services,Communications & Computing,Land Line Telephone Charges,02/04/2020,297789,39,Virgin Media Payments Ltd
Central Services to the Public,Management & Support Services,IT,Supplies & Services,Communications & Computing,Communication Links,02/04/2020,297789,26,Virgin Media Payments Ltd
Central Services to the Public,Management & Support Services,IT,Supplies & Services,Communications & Computing,Communication Links,02/04/2020,297789,67,Virgin Media Payments Ltd
Cultural & Related,Recreation & Sport,Community and Leisure ,Supplies & Services,Communications & Computing,Land Line Telephone Charges,02/04/2020,297789,26,Virgin Media Payments Ltd
Cultural & Related,Recreation & Sport,Community and Leisure ,Supplies & Services,Communications & Computing,Land Line Telephone Charges,02/04/2020,297789,13,Virgin Media Payments Ltd
Cultural & Related,Culture & Heritage,Community and Leisure ,Supplies & Services,Communications & Computing,Communication Links,02/04/2020,297789,74.13,Virgin Media Payments Ltd
"Highways, Roads & Transport",Parking Services,Plan Pol & Transport,Supplies & Services,Communications & Computing,Alarm Lines,02/04/2020,297789,37,Virgin Media Payments Ltd
Central Services to the Public,Management & Support Services,Environmental,Supplies & Services,Communications & Computing,Land Line Telephone Charges,02/04/2020,297789,52.69,Virgin Media Payments Ltd
Central Services to the Public,Emergency Planning,Corporate & Democratic,Supplies & Services,Communications & Computing,Land Line Telephone Charges,02/04/2020,297789,78,Virgin Media Payments Ltd
External Trading Accounts,Business Parks,Premises & Asset Management,Supplies & Services,Communications & Computing,Land Line Telephone Charges,30/04/2020,303066,26.64,Virgin Media Payments Ltd
Cultural & Related,Culture & Heritage,Premises & Asset Management,Supplies & Services,Communications & Computing,Land Line Telephone Charges,30/04/2020,303066,26,Virgin Media Payments Ltd
Cultural & Related,Culture & Heritage,Premises & Asset Management,Supplies & Services,Communications & Computing,Land Line Telephone Charges,30/04/2020,303066,39,Virgin Media Payments Ltd
Central Services to the Public,Management & Support Services,IT,Supplies & Services,Communications & Computing,Communication Links,30/04/2020,303066,26,Virgin Media Payments Ltd
Central Services to the Public,Management & Support Services,IT,Supplies & Services,Communications & Computing,Communication Links,30/04/2020,303066,67,Virgin Media Payments Ltd
Cultural & Related,Recreation & Sport,Community and Leisure ,Supplies & Services,Communications & Computing,Land Line Telephone Charges,30/04/2020,303066,26,Virgin Media Payments Ltd
Cultural & Related,Recreation & Sport,Community and Leisure ,Supplies & Services,Communications & Computing,Land Line Telephone Charges,30/04/2020,303066,0,Virgin Media Payments Ltd
Cultural & Related,Recreation & Sport,Community and Leisure ,Supplies & Services,Communications & Computing,Land Line Telephone Charges,30/04/2020,303066,13,Virgin Media Payments Ltd
Cultural & Related,Culture & Heritage,Community and Leisure ,Supplies & Services,Communications & Computing,Communication Links,30/04/2020,303066,76,Virgin Media Payments Ltd
"Highways, Roads & Transport",Parking Services,Plan Pol & Transport,Supplies & Services,Communications & Computing,Alarm Lines,30/04/2020,303066,37,Virgin Media Payments Ltd
Central Services to the Public,Management & Support Services,Environmental,Supplies & Services,Communications & Computing,Land Line Telephone Charges,30/04/2020,303066,52.3,Virgin Media Payments Ltd
Central Services to the Public,Emergency Planning,Corporate & Democratic,Supplies & Services,Communications & Computing,Land Line Telephone Charges,30/04/2020,303066,78,Virgin Media Payments Ltd
Environmental & Regulatory,Waste management,Environmental,Transport Related Expenditure,Direct Transport Costs,Tyres,23/04/2020,301566,481.11,Tructyre Ats
Central Services to the Public,Elections,Legal & Democratic,Supplies & Services,"Printing, Stationery & General Office Expenses",Written Media,09/04/2020,298315,530,Wildy & Sons Ltd
Environmental & Regulatory,Waste management,Environmental,Transport Related Expenditure,Direct Transport Costs,Repair Materials,30/04/2020,302622,487.53,Dennis Eagle Ltd
Environmental & Regulatory,Community Development,Community and Leisure ,Employees,Indirect Employee Expenses,Advertising Of Vacancies,02/04/2020,296382,495,Prepared Media Ltd
Planning & Development,Community Development,Community and Leisure ,Supplies & Services,Grants & Subscriptions,Grants,29/04/2020,303006,600,Knightwood Youth Club
Environmental & Regulatory,Regulatory Services,Housing and Environmental Health ,Supplies & Services,Grants and subscriptions,Capital Grants,30/04/2020,303091,600,Architectural Survey Services Ltd
Central Services to the Public,Management & Support Services,Premises & Asset Management,Third Party Payments,Other Establishments,Private Contractors,02/04/2020,296873,500,Purbeck Civil Engineering Limited
Planning & Development,Community Development,Community and Leisure ,Supplies & Services,Grants & Subscriptions,Grants,30/04/2020,303075,600,Warner Court Trust
Environmental & Regulatory,Waste management,Environmental,Transport Related Expenditure,Direct Transport Costs,External Garages,30/04/2020,302656,305.5,Dennis Eagle Ltd
Environmental & Regulatory,Waste management,Environmental,Transport Related Expenditure,Direct Transport Costs,Repair Materials,30/04/2020,302656,196.79,Dennis Eagle Ltd
Environmental & Regulatory,Regulatory Services,Housing and Environmental Health ,Supplies & Services,Grants & Subscriptions,Subscriptions,02/04/2020,296366,515,Chartered Inst. Of Environmental Health
Central Services to the Public,Management & Support Services,HR Services,Third Party Payments,Other Local Authorities,Shared Service Contract Costs,28/04/2020,301600,528.82,Mhr International Uk Ltd
Housing Services,Homelessness,Housing and Environmental Health ,Supplies & Services,Grants & Subscriptions,Grants,23/04/2020,301842,639.8,Aster Group
Central Services to the Public,Management & Support Services,Premises & Asset Management,Supplies & Services,"Equipment, Furniture & Materials",Purchase Equip + Materials,30/04/2020,302611,540,Yesss Electrical
Central Services to the Public,Management & Support Services,Environmental,Supplies & Services,"Equipment, Furniture & Materials",Maintenance Equip + Materials,23/04/2020,301848,546.05,Tokheim Solutions Uk Ltd
"Highways, Roads & Transport",Parking Services,Plan Pol & Transport,Supplies & Services,Services,Professional Fees,09/04/2020,298301,546.91,Advam (Uk) Limited
Cultural & Related,Culture & Heritage,Premises & Asset Management,Premises related Expenditure,Repairs Alterations & Maintenance of Buildings,Building Maint - Non Estates,02/04/2020,296878,550,Coupe Line
Central Services to the Public,Management & Support Services,IT,Supplies & Services,Communications & Computing,Telephone System Maintenance,02/04/2020,297180,550,Nuvola Distribution Ltd
Central Services to the Public,Elections,Legal & Democratic,Supplies & Services,"Printing, Stationery & General Office Expenses",External Printing,28/04/2020,302251,552.22,Financial Data Management Plc
Central Services to the Public,Local Tax Collection,Revenues,Supplies & Services,"Equipment, Furniture & Materials",Equipment Lease Rentals,21/04/2020,301840,55.42,Quadient Finance Uk Ltd
Central Services to the Public,Local Tax Collection,Revenues,Supplies & Services,"Equipment, Furniture & Materials",Equipment Lease Rentals,21/04/2020,301840,221.69,Quadient Finance Uk Ltd
Housing Services,Housing Benefits ,Revenues,Supplies & Services,"Equipment, Furniture & Materials",Equipment Lease Rentals,21/04/2020,301840,138.56,Quadient Finance Uk Ltd
Central Services to the Public,Local Tax Collection,Revenues,Supplies & Services,"Equipment, Furniture & Materials",Equipment Lease Rentals,21/04/2020,301840,138.56,Quadient Finance Uk Ltd
"Highways, Roads & Transport",Highways and roads - maintenance,Plan Pol & Transport,Premises related Expenditure,Repairs Alterations & Maintenance of Buildings,Highways Repairs,30/04/2020,302673,425,M J Ellis Manufacturing
"Highways, Roads & Transport",Parking Services,Plan Pol & Transport,Premises related Expenditure,Repairs Alterations & Maintenance of Buildings,Car Park General Repairs,30/04/2020,302673,130,M J Ellis Manufacturing
"Highways, Roads & Transport",Public Transport,Plan Pol & Transport,Third Party Payments,Transport Operators in Respect of Concessionary Fares,Voluntary Orgs Reimbursement,02/04/2020,297826,675,Romsey Good Neighbours
Central Services to the Public,Management & Support Services,IT,Supplies & Services,Communications & Computing,Land Line Telephone Charges,23/04/2020,301851,563.78,Bt Conferencing
Central Services to the Public,Local Land Charges,Legal & Democratic,Supplies & Services,Communications & Computing,Computer Software,02/04/2020,297175,576.15,Phoenix Software Ltd
Cultural & Related,Open Spaces,Environmental,Supplies & Services,Miscellaneous Expenses,Waste Collection,02/04/2020,296889,580,Raymond Brown Waste Solutions
Environmental & Regulatory,Regulatory Services,Housing and Environmental Health ,Third Party Payments,Other Establishments,Private Contractors,02/04/2020,296918,585,Cedar Pest Ltd
Central Services to the Public,Elections,Legal & Democratic,Supplies & Services,Communications & Computing,Computer Software,21/04/2020,301337,592,Civica Electionservices Ltd
Planning & Development,Development Control,Planning & Building,Supplies & Services,Services,Project Consultancy - Policy,16/04/2020,301344,600,Reading Agricultural Consultants Ltd
External Trading Accounts,Business Parks,Premises & Asset Management,Supplies & Services,Miscellaneous Expenses,Waste Collection,09/04/2020,297822,608.16,Basingstoke Skip Hire & Sthrn Waste Mgt Ltd
Cultural & Related,Culture & Heritage,Premises & Asset Management,Supplies & Services,Miscellaneous Expenses,Waste Collection,16/04/2020,301359,609.91,Suez Recycling And Recovery Uk Ltd
Planning & Development,Economic Development,Planning Policy & Economic Development ,Supplies & Services,Services,Training Courses,02/04/2020,296630,749.5,La Di Da
Central Services to the Public,Local Tax Collection,Revenues,Supplies & Services,Services,Training Courses,22/04/2020,297003,625,Airey Consultancy Services Ltd
Planning & Development,Economic Development,Planning Policy & Economic Development ,Supplies & Services,Grants & Subscriptions,Grants,16/04/2020,301596,750,Personal Data - Data Protection Act 1998
Planning & Development,Economic Development,Planning Policy & Economic Development ,Supplies & Services,Grants & Subscriptions,Grants,30/04/2020,303069,750,Personal Data - Data Protection Act 1998
Environmental & Regulatory,Waste management,Environmental,Employees,Indirect Employee Expenses,Agency Staff - Waged Posts,09/04/2020,299044,630.11,24-7 Staffing
Environmental & Regulatory,Waste management,Environmental,Employees,Indirect Employee Expenses,Agency Staff - Waged Posts,23/04/2020,301582,630.11,24-7 Staffing
Environmental & Regulatory,Waste management,Environmental,Transport Related Expenditure,Direct Transport Costs,Repair Materials,09/04/2020,297810,630.28,Dennis Eagle Ltd
External Trading Accounts,Business Parks,Premises & Asset Management,Premises related Expenditure,Energy Costs,Gas,09/04/2020,297800,636.09,Total Gas & Power Ltd
Planning & Development,Community Development,Community and Leisure ,Supplies & Services,Grants & Subscriptions,Grants,09/04/2020,299209,767.45,Carers Together
Central Services to the Public,Elections,Legal & Democratic,Supplies & Services,"Printing, Stationery & General Office Expenses",External Printing,28/04/2020,302252,771.04,Financial Data Management Plc
Central Services to the Public,Management & Support Services,Legal & Democratic,Supplies & Services,Grants & Subscriptions,Subscriptions,30/04/2020,302630,775,Llg Legal Training
Environmental & Regulatory,Waste management,Environmental,Employees,Indirect Employee Expenses,Agency Staff - Waged Posts,09/04/2020,298326,654.75,Active Staff Ltd
Housing Services,Homelessness,Housing and Environmental Health ,Supplies & Services,Grants & Subscriptions,Grants,09/04/2020,298317,798,Verdant Plants And Gardens
Cultural & Related,Open Spaces,Environmental,Third Party Payments,Other Establishments,Private Contractors,30/04/2020,303019,802.83,Ivan Gibson Agricultural Contractor
Central Services to the Public,Local Tax Collection,Revenues,Supplies & Services,"Printing, Stationery & General Office Expenses",Postage Costs,02/04/2020,296914,147.51,Royal Mail Group Ltd
Central Services to the Public,Local Tax Collection,Revenues,Supplies & Services,"Printing, Stationery & General Office Expenses",Postage Costs,02/04/2020,296914,55.97,Royal Mail Group Ltd
Central Services to the Public,Local Tax Collection,Revenues,Supplies & Services,"Printing, Stationery & General Office Expenses",Postage Costs,02/04/2020,296914,404.87,Royal Mail Group Ltd
Housing Services,Housing Benefits ,Revenues,Supplies & Services,"Printing, Stationery & General Office Expenses",Postage Costs,02/04/2020,296914,31.48,Royal Mail Group Ltd
Central Services to the Public,Local Tax Collection,Revenues,Supplies & Services,"Printing, Stationery & General Office Expenses",Postage Costs,02/04/2020,296914,31.48,Royal Mail Group Ltd
Central Services to the Public,Management & Support Services,Premises & Asset Management,Premises related Expenditure,Repairs Alterations & Maintenance of Buildings,Planned Maintenance - Non Est,09/04/2020,299172,675,Hcl Safety Ltd
Central Services to the Public,Management & Support Services,HR Services,Supplies & Services,Services,Medical Fees,30/04/2020,301385,810,The Space To Be
Environmental & Regulatory,Regulatory Services,Housing and Environmental Health ,Employees,Indirect Employee Expenses,Temporary Staff,23/04/2020,301934,682.5,Vivid Resourcing
Environmental & Regulatory,Waste management,Environmental,Employees,Indirect Employee Expenses,Agency Staff - Waged Posts,30/04/2020,302676,685.54,24-7 Staffing
Central Services to the Public,Management & Support Services,Premises & Asset Management,Supplies & Services,Communications & Computing,Telephone Tracking System,16/04/2020,299089,48,Teletrac Navman (Uk) Ltd
Environmental & Regulatory,Regulatory Services,Housing and Environmental Health ,Supplies & Services,Communications & Computing,Telephone Tracking System,16/04/2020,299089,6,Teletrac Navman (Uk) Ltd
Environmental & Regulatory,Regulatory Services,Housing and Environmental Health ,Supplies & Services,Communications & Computing,Telephone Tracking System,16/04/2020,299089,12,Teletrac Navman (Uk) Ltd
Cultural & Related,Open Spaces,Community and Leisure ,Supplies & Services,Communications & Computing,Telephone Tracking System,16/04/2020,299089,6,Teletrac Navman (Uk) Ltd
Cultural & Related,Open Spaces,Community and Leisure ,Supplies & Services,Communications & Computing,Telephone Tracking System,16/04/2020,299089,6,Teletrac Navman (Uk) Ltd
"Highways, Roads & Transport",Parking Services,Plan Pol & Transport,Supplies & Services,Communications & Computing,Telephone Tracking System,16/04/2020,299089,12,Teletrac Navman (Uk) Ltd
Cultural & Related,Open Spaces,Environmental,Supplies & Services,Communications & Computing,Telephone Tracking System,16/04/2020,299089,246,Teletrac Navman (Uk) Ltd
Environmental & Regulatory,Waste & Recycling Management,Environmental,Supplies & Services,Communications & Computing,Telephone Tracking System,16/04/2020,299089,36,Teletrac Navman (Uk) Ltd
Environmental & Regulatory,Street Cleansing (not chargeable to Highways),Environmental,Supplies & Services,Communications & Computing,Telephone Tracking System,16/04/2020,299089,168.7,Teletrac Navman (Uk) Ltd
Environmental & Regulatory,Waste management,Environmental,Supplies & Services,Communications & Computing,Telephone Tracking System,16/04/2020,299089,120,Teletrac Navman (Uk) Ltd
Environmental & Regulatory,Waste management,Environmental,Supplies & Services,Communications & Computing,Telephone Tracking System,16/04/2020,299089,12,Teletrac Navman (Uk) Ltd
Central Services to the Public,Management & Support Services,Environmental,Supplies & Services,Communications & Computing,Telephone Tracking System,16/04/2020,299089,18,Teletrac Navman (Uk) Ltd
Cultural & Related,Open Spaces,Community and Leisure ,Premises related Expenditure,Grounds Maintenance Costs,Non Contract Tree Works,02/04/2020,295788,700,Hrg Tree Services Ltd
Cultural & Related,Open Spaces,Community and Leisure ,Premises related Expenditure,Grounds Maintenance Costs,Non Contract Tree Works,09/04/2020,295787,700,Hrg Tree Services Ltd
Cultural & Related,Culture & Heritage,Community and Leisure ,Supplies & Services,"Printing, Stationery & General Office Expenses",Licences / Affiliation Fees,28/04/2020,301360,710,Ppl Prs Ltd
Environmental & Regulatory,Waste management,Environmental,Employees,Indirect Employee Expenses,Agency Staff - Waged Posts,02/04/2020,296367,710.32,Simple Recruitment Services Ltd
Environmental & Regulatory,Waste & Recycling Management,Environmental,Transport Related Expenditure,Direct Transport Costs,Tyres,30/04/2020,302664,125.24,Tructyre Ats
Environmental & Regulatory,Waste management,Environmental,Transport Related Expenditure,Direct Transport Costs,Tyres,30/04/2020,302664,589.46,Tructyre Ats
Environmental & Regulatory,Regulatory Services,Housing and Environmental Health ,Supplies & Services,Grants and subscriptions,Capital Grants,09/04/2020,299211,859.49,Andover Glass Works Ltd
Central Services to the Public,Management & Support Services,HR Services,Employees,Indirect Employee Expenses,Agency Staff - Waged Posts,30/04/2020,301386,716.4,Adecco Uk Ltd
Central Services to the Public,Management & Support Services,Environmental,Transport Related Expenditure,Direct Transport Costs,Oils,16/04/2020,299533,720,Fuchs Lubricants (Uk) Plc
Central Services to the Public,Management & Support Services,Premises & Asset Management,Supplies & Services,"Equipment, Furniture & Materials",Equipment Hire,02/04/2020,296639,721.56,Brandon Hire Station
Central Services to the Public,Management & Support Services,HR Services,Employees,Indirect Employee Expenses,Agency Staff - Waged Posts,30/04/2020,298297,736.3,Adecco Uk Ltd
Central Services to the Public,Management & Support Services,HR Services,Employees,Indirect Employee Expenses,Agency Staff - Waged Posts,02/04/2020,296010,736.3,Adecco Uk Ltd
Cultural & Related,Recreation & Sport,Premises & Asset Management,Premises related Expenditure,Energy Costs,Gas,09/04/2020,297799,742.18,Total Gas & Power Ltd
Cultural & Related,Culture & Heritage,Community and Leisure ,Supplies & Services,Miscellaneous Expenses,Booking Of Acts,02/04/2020,296652,750,The Pantaloons
Environmental & Regulatory,Waste management,Environmental,Employees,Indirect Employee Expenses,Agency Staff - Waged Posts,09/04/2020,299045,752.21,24-7 Staffing
"Highways, Roads & Transport",Parking Services,Plan Pol & Transport,Supplies & Services,Miscellaneous Expenses,Advertising,02/04/2020,296540,760.6,Hampshire Media Limited
Central Services to the Public,Management & Support Services,Environmental,Transport Related Expenditure,Direct Transport Costs,Repair Materials,16/04/2020,299540,766.4,T H White Ltd
"Highways, Roads & Transport",Highways and roads - maintenance,Plan Pol & Transport,Premises related Expenditure,Repairs Alterations & Maintenance of Buildings,General Repairs,02/04/2020,296629,767.8,Sse Networks
Environmental & Regulatory,Waste management,Environmental,Transport Related Expenditure,Direct Transport Costs,Repair Materials,23/04/2020,301361,773.73,Dennis Eagle Ltd
Central Services to the Public,Management & Support Services,Finance,Supplies & Services,"Printing, Stationery & General Office Expenses",Postage Costs,28/04/2020,301945,783.35,Whistl Uk Ltd
Environmental & Regulatory,Waste management,Environmental,Transport Related Expenditure,Direct Transport Costs,Repair Materials,23/04/2020,301377,787.62,Adams Morey Ltd
"Highways, Roads & Transport",Parking Services,Plan Pol & Transport,Premises related Expenditure,Repairs Alterations & Maintenance of Buildings,Car Park General Repairs,16/04/2020,301350,790,M J Ellis Manufacturing
Central Services to the Public,Management & Support Services,HR Services,Third Party Payments,Other Local Authorities,Shared Service Contract Costs,02/04/2020,297814,792,Mhr International Uk Ltd
Central Services to the Public,Local Tax Collection,Revenues,Supplies & Services,Services,Professional Fees,22/04/2020,297812,400,Airey Consultancy Services Ltd
Housing Services,Housing Benefits ,Revenues,Supplies & Services,Services,Professional Fees,22/04/2020,297812,400,Airey Consultancy Services Ltd
"Highways, Roads & Transport",Parking Services,Plan Pol & Transport,Third Party Payments,Private contractors,Main Contractor Costs,30/04/2020,296886,800,Hampshire County Council
Central Services to the Public,Local Tax Collection,Revenues,Supplies & Services,"Printing, Stationery & General Office Expenses",External Printing,30/04/2020,302631,800.43,Latcham Direct Ltd
Central Services to the Public,Management & Support Services,Premises & Asset Management,Premises related Expenditure,Energy Costs,Gas,23/04/2020,302237,807.79,Total Gas & Power Ltd
Environmental & Regulatory,Regulatory Services,Housing and Environmental Health ,Supplies & Services,Grants and subscriptions,Capital Grants,09/04/2020,299171,970.27,Pm Design
"Highways, Roads & Transport",Public Transport,Plan Pol & Transport,Third Party Payments,Transport Operators in Respect of Concessionary Fares,Voluntary Orgs Reimbursement,02/04/2020,297824,988,Romsey Good Neighbours
External Trading Accounts,Business Parks,Premises & Asset Management,Premises related Expenditure,Repairs Alterations & Maintenance of Buildings,Building Maint - Non Estates,02/04/2020,296875,827,Personal Data - Data Protection Act 1998
Central Services to the Public,Management & Support Services,IT,Supplies & Services,"Equipment, Furniture & Materials",IT Supp and Serv AMP,30/04/2020,298335,827.3,Bt Business Direct
Environmental & Regulatory,Waste management,Environmental,Transport Related Expenditure,Direct Transport Costs,Repair Materials,09/04/2020,298319,832.67,Dennis Eagle Ltd
Planning & Development,Community Development,Community and Leisure ,Supplies & Services,Grants & Subscriptions,Grants,22/04/2020,302259,1000,Andover Trees United
Planning & Development,Community Development,Community and Leisure ,Supplies & Services,Grants & Subscriptions,Grants,30/04/2020,299094,1000,Abbotts Ann Nursery School
Planning & Development,Community Development,Community and Leisure ,Supplies & Services,Grants & Subscriptions,Grants,30/04/2020,303076,1000,Friends Of Andover Cardiac Rehabilitation
Central Services to the Public,Management & Support Services,Premises & Asset Management,Third Party Payments,Other Establishments,Private Contractors,21/04/2020,301389,839.56,Xylem Water Solutions Ltd
Planning & Development,Development Control,Planning & Building,Supplies & Services,"Printing, Stationery & General Office Expenses",Stationery,23/04/2020,298351,579.43,Lyreco Uk Ltd
Planning & Development,Development Control,Planning & Building,Supplies & Services,"Printing, Stationery & General Office Expenses",Print Consumables,23/04/2020,298351,290.48,Lyreco Uk Ltd
Environmental & Regulatory,Waste management,Environmental,Transport Related Expenditure,Direct Transport Costs,Tyres,28/04/2020,301929,873.09,Tructyre Ats
Cultural & Related,Open Spaces,Community and Leisure ,Third Party Payments,Private contractors,Main Contractor Costs,02/04/2020,296524,882,Moles Seeds (Uk) Ltd
Environmental & Regulatory,Waste management,Environmental,Supplies & Services,"Printing, Stationery & General Office Expenses",External Printing,02/04/2020,297054,747,Vernham Labels Ltd
Environmental & Regulatory,Waste management,Environmental,Supplies & Services,Miscellaneous Expenses,Recycling Campaign,02/04/2020,297054,145,Vernham Labels Ltd
Environmental & Regulatory,Street Cleansing (not chargeable to Highways),Environmental,Supplies & Services,"Equipment, Furniture & Materials",Purchase Equip + Materials,09/04/2020,298329,894.91,Colour Idea Ltd (T/A Wild View Cameras)
Central Services to the Public,Elections,Legal & Democratic,Supplies & Services,"Printing, Stationery & General Office Expenses",Postage Costs,30/04/2020,302860,968.93,Royal Mail Group Ltd
External Trading Accounts,Business Parks,Premises & Asset Management,Supplies & Services,Services,Professional Fees,30/04/2020,302862,937.5,Hemsworth Associates Llp
Central Services to the Public,Management & Support Services,IT,Supplies & Services,Communications & Computing,Land Line Telephone Charges,23/04/2020,301868,939.02,Virgin Media Payments Ltd
External Trading Accounts,Business Parks,Premises & Asset Management,Premises related Expenditure,Repairs Alterations & Maintenance of Buildings,Chantry Centre AMP,16/04/2020,300069,950,Real Estate Strategies Ltd
External Trading Accounts,Business Parks,Premises & Asset Management,Premises related Expenditure,Repairs Alterations & Maintenance of Buildings,Chantry Centre AMP,16/04/2020,300070,950,Real Estate Strategies Ltd
Environmental & Regulatory,Street Cleansing (not chargeable to Highways),Environmental,Transport Related Expenditure,Direct Transport Costs,Repair Materials,09/04/2020,297004,973.16,Green Machines Sweepers Uk Ltd
Environmental & Regulatory,Regulatory Services,Housing and Environmental Health ,Employees,Indirect Employee Expenses,Temporary Staff,21/04/2020,298298,973.5,Paystream My Max 3 Ltd
Environmental & Regulatory,Regulatory Services,Housing and Environmental Health ,Employees,Indirect Employee Expenses,Temporary Staff,21/04/2020,301370,973.5,Paystream My Max 3 Ltd
Environmental & Regulatory,Regulatory Services,Housing and Environmental Health ,Employees,Indirect Employee Expenses,Temporary Staff,30/04/2020,302248,983.85,Paystream My Max 3 Ltd
"Highways, Roads & Transport",Parking Services,Plan Pol & Transport,Premises related Expenditure,Repairs Alterations & Maintenance of Buildings,Car Park General Repairs,21/04/2020,301375,992.5,Clearwater 2010 Ltd
Central Services to the Public,Management & Support Services,Finance,Supplies & Services,"Printing, Stationery & General Office Expenses",Postage Costs,02/04/2020,292193,993.12,Whistl Uk Ltd
Central Services to the Public,Management & Support Services,HR Services,Third Party Payments,Other Local Authorities,Shared Service Contract Costs,28/04/2020,301847,998.15,Mhr International Uk Ltd
Central Services to the Public,Management & Support Services,Premises & Asset Management,Premises related Expenditure,Repairs Alterations & Maintenance of Buildings,Planned Maintenance - Non Est,09/04/2020,299053,1000,Tls Fire & Security Llp
Environmental & Regulatory,Regulatory Services,Housing and Environmental Health ,Employees,Indirect Employee Expenses,Temporary Staff,02/04/2020,296911,1012.65,Paystream My Max 3 Ltd
"Highways, Roads & Transport",Highways and roads - maintenance,Plan Pol & Transport,Third Party Payments,Private contractors,Main Contractor Costs,23/04/2020,302398,1250,East Hampshire District Council
Cultural & Related,Tourism,Planning Policy & Economic Development ,Supplies & Services,Miscellaneous Expenses,Advertising,02/04/2020,296631,1050,Hampshire County Council
"Highways, Roads & Transport",Public Transport,Plan Pol & Transport,Third Party Payments,Transport Operators in Respect of Concessionary Fares,Voluntary Orgs Reimbursement,02/04/2020,297821,1316,Romsey Good Neighbours
Environmental & Regulatory,Waste management,Environmental,Employees,Indirect Employee Expenses,Agency Staff - Waged Posts,02/04/2020,296890,1113.29,Simple Recruitment Services Ltd
Central Services to the Public,Management & Support Services,Premises & Asset Management,Supplies & Services,"Equipment, Furniture & Materials",Purchase Materials (Job Cost),23/04/2020,302225,1123.55,Bss Group Plc
Central Services to the Public,Management & Support Services,Environmental,Transport Related Expenditure,Direct Transport Costs,Oils,16/04/2020,299539,1148,Fuchs Lubricants (Uk) Plc
Central Services to the Public,Local Tax Collection,Revenues,Supplies & Services,Services,Professional Fees,09/04/2020,299077,102.39,Ross & Roberts
Cultural & Related,Open Spaces,Environmental,Transport Related Expenditure,Direct Transport Costs,External Garages,09/04/2020,298322,1163.93,Hunt Forest Group Ltd
Central Services to the Public,Management & Support Services,Premises & Asset Management,Third Party Payments,Other Establishments,Private Contractors,02/04/2020,296638,1210,Spear Electrical Limited
Central Services to the Public,Management & Support Services,IT,Supplies & Services,Communications & Computing,Computer Hardware,02/04/2020,296885,1212.8,Ebuyer (Uk) Limited
Planning & Development,Development Control,Planning & Building,Supplies & Services,Communications & Computing,Computer Hardware,23/04/2020,302195,1256,Bt Business Direct
Central Services to the Public,Local Tax Collection,Revenues,Supplies & Services,Services,Professional Fees,09/04/2020,299078,0,Rossendales
Environmental & Regulatory,Waste management,Environmental,Supplies & Services,"Equipment, Furniture & Materials",Purchase Equip + Materials,02/04/2020,292796,1283.16,Egbert H Taylor & Co Ltd
Central Services to the Public,Management & Support Services,Premises & Asset Management,Premises related Expenditure,Repairs Alterations & Maintenance of Buildings,Estates premises costs - AMP,09/04/2020,299081,1310.18,C Brewer & Sons Ltd
Environmental & Regulatory,Waste management,Environmental,Transport Related Expenditure,Direct Transport Costs,Repair Materials,23/04/2020,301947,1312.14,Dennis Eagle Ltd
Central Services to the Public,Management & Support Services,Premises & Asset Management,Third Party Payments,Other Establishments,Private Contractors,30/04/2020,302613,1323,Alarms & Electrical (Devizes) Ltd
Central Services to the Public,Management & Support Services,Finance,Supplies & Services,"Printing, Stationery & General Office Expenses",Postage Costs,02/04/2020,297007,1329.68,Whistl Uk Ltd
Central Services to the Public,Local Tax Collection,Revenues,Supplies & Services,Miscellaneous Expenses,Data Access Requests,02/04/2020,296898,1600,Tameside Mbc
Central Services to the Public,Management & Support Services,IT,Support Services,IT,IT Hardware costs,30/04/2020,301575,1342.5,Integrated Solutions Ltd
Central Services to the Public,Management & Support Services,Environmental,Supplies & Services,Grants & Subscriptions,Subscriptions,02/04/2020,296904,1375,Freight Transport Association
Planning & Development,Development Control,Planning & Building,Supplies & Services,Miscellaneous Expenses,Planning Appeal Costs,09/04/2020,296315,1400,Cornerstone Barristers
Central Services to the Public,Management & Support Services,Finance,Supplies & Services,"Printing, Stationery & General Office Expenses",Postage Costs,28/04/2020,301937,1406.58,Whistl Uk Ltd
Central Services to the Public,Management & Support Services,Environmental,Supplies & Services,Communications & Computing,Software Maintenance,02/04/2020,297809,1408.28,Civica Uk Ltd
"Highways, Roads & Transport",Highways and roads - maintenance,Plan Pol & Transport,Third Party Payments,Private contractors,Main Contractor Costs,02/04/2020,297224,1450,J P Lighting Design
Management & Support Services,Central Services to the Public,Estates and Economic Development ,Third Party Payments,Private contractors,Main Contractor Costs,09/04/2020,299052,1450,Abp Associates Ltd
Environmental & Regulatory,Waste management,Environmental,Transport Related Expenditure,Direct Transport Costs,Repair Materials,30/04/2020,302650,1452.11,Dennis Eagle Ltd
Housing Services,Homelessness,Housing and Environmental Health ,Supplies & Services,Grants & Subscriptions,Grants,16/04/2020,301568,1745.42,Sovereign Housing
Cultural & Related,Open Spaces,Environmental,Transport Related Expenditure,Direct Transport Costs,Repair Materials,22/04/2020,299537,1495,Commercial Supplies Ltd
External Trading Accounts,Business Parks,Premises & Asset Management,Premises related Expenditure,Repairs Alterations & Maintenance of Buildings,Chantry Centre AMP,09/04/2020,299082,1500,Real Estate Strategies Ltd
Central Services,Corporate & Democratic Core,Corporate & Democratic,Supplies & Services,Services,Project Consultancy - Policy,02/04/2020,296993,1500,Luciel Limited
Central Services to the Public,Management & Support Services,Environmental,Transport Related Expenditure,Direct Transport Costs,Workshop Consumables,09/04/2020,298289,1501,Md Services (Andover) Ltd
Housing Services,Housing Benefits ,Revenues,Employees,Indirect Employee Expenses,Temporary Staff,09/04/2020,298350,1802.5,Personal Data - Data Protection Act 1998
Environmental & Regulatory,Waste management,Environmental,Employees,Indirect Employee Expenses,Agency Staff - Waged Posts,02/04/2020,297157,1540.09,24-7 Staffing
Environmental & Regulatory,Street Cleansing (not chargeable to Highways),Environmental,Supplies & Services,"Equipment, Furniture & Materials",Maintenance Equip + Materials,02/04/2020,297199,1560,Imperial Polythene Products Ltd
Cultural & Related,Culture & Heritage,Community and Leisure ,Supplies & Services,"Printing, Stationery & General Office Expenses",Postage Costs,02/04/2020,296362,1969.2,John Dollin Printing Services Ltd
Central Services to the Public,Management & Support Services,Environmental,Transport Related Expenditure,Direct Transport Costs,Diesel,30/04/2020,302649,1650.46,Wp Group Limited
Environmental & Regulatory,Regulatory Services,Housing and Environmental Health ,Supplies & Services,Grants and subscriptions,Capital Grants,09/04/2020,299170,2029.73,Northfield Property Solutions Limited
Central Services to the Public,Management & Support Services,Environmental,Transport Related Expenditure,Direct Transport Costs,Diesel,23/04/2020,301941,1734,Wp Group Limited
Cultural & Related,Recreation & Sport,Community and Leisure ,Premises related Expenditure,Grounds Maintenance Costs,Gm - Additional Works,01/04/2020,296893,1750,Reformed Plastics (Uk) Ltd
Central Services to the Public,Management & Support Services,Premises & Asset Management,Third Party Payments,Other Establishments,Contract Catering,30/04/2020,301871,1770,Edwards And Ward Ltd
Central Services to the Public,Management & Support Services,Environmental,Transport Related Expenditure,Direct Transport Costs,Diesel,09/04/2020,298310,1788.4,Wp Group Limited
External Trading Accounts,Property Investments,Premises & Asset Management,Supplies & Services,Services,Professional Fees,02/04/2020,296872,1800,Vail Williams Llp
Housing Services,Housing Benefits ,Revenues,Employees,Indirect Employee Expenses,Temporary Staff,23/04/2020,302210,2205,Personal Data - Data Protection Act 1998
Environmental & Regulatory,Regulatory Services,Housing and Environmental Health ,Supplies & Services,Grants and subscriptions,Capital Grants,30/04/2020,303090,2237.29,Prism Medical Uk
Environmental & Regulatory,Waste management,Environmental,Employees,Indirect Employee Expenses,Agency Staff - Waged Posts,30/04/2020,302675,1510.95,24-7 Staffing
Environmental & Regulatory,Waste management,Environmental,Employees,Indirect Employee Expenses,Agency Staff - Waged Posts,30/04/2020,302675,407.28,24-7 Staffing
Cultural & Related,Culture & Heritage,Community and Leisure ,Supplies & Services,"Printing, Stationery & General Office Expenses",Licences / Affiliation Fees,09/04/2020,299090,1922.42,Ppl Prs Ltd
Environmental & Regulatory,Waste management,Environmental,Supplies & Services,"Equipment, Furniture & Materials",Purchase Equip + Materials,02/04/2020,296883,1924.74,Egbert H Taylor & Co Ltd
Central Services to the Public,Management & Support Services,Estates and Economic Development ,Third Party Payments,Private contractors,Main Contractor Costs,23/04/2020,302201,1928,Broxap Limited (Stadia Sports )
Environmental & Regulatory,Regulatory Services,Housing and Environmental Health ,Supplies & Services,Miscellaneous Expenses,Kennel fees,21/04/2020,298292,1937.76,Three Oak Boarding Kennels
Environmental & Regulatory,Regulatory Services,Housing and Environmental Health ,Transport Related Expenditure,Contract Hire and Operating Leases,Officer lease cars,23/04/2020,301849,2370.94,Arnold Clark Finance Ltd
External Trading Accounts,Economic Development,Premises & Asset Management,Premises related Expenditure,Repairs Alterations & Maintenance of Buildings,Estates premises costs - AMP,23/04/2020,302224,1984.9,Externiture Ltd
Central Services to the Public,Management & Support Services,IT,Supplies & Services,Services,Training Courses,30/04/2020,295715,1999,Service Desk Institute
Cultural & Related,Open Spaces,Community and Leisure ,Premises related Expenditure,Repairs Alterations & Maintenance of Buildings,Estates premises costs - AMP,02/04/2020,293710,2092.93,Hrg Tree Services Ltd
Central Services to the Public,Management & Support Services,Environmental,Transport Related Expenditure,Direct Transport Costs,Diesel,16/04/2020,299073,1755.85,Wp Group Limited
Central Services to the Public,Management & Support Services,Environmental,Transport Related Expenditure,Direct Transport Costs,Red Derv,16/04/2020,299073,391.23,Wp Group Limited
Central Services to the Public,Management & Support Services,Chief Executive's,Supplies & Services,"Printing, Stationery & General Office Expenses",Conference Costs,30/04/2020,303092,1050,Solace Enterprises Ltd
Planning & Development,Development Control,Planning & Building,Supplies & Services,"Printing, Stationery & General Office Expenses",Conference Costs,30/04/2020,303092,525,Solace Enterprises Ltd
Planning & Development,Planning Policy,Plan Pol & Transport,Supplies & Services,"Printing, Stationery & General Office Expenses",Conference Costs,30/04/2020,303092,525,Solace Enterprises Ltd
Central Services to the Public,Management & Support Services,HR Services,Third Party Payments,Other Local Authorities,Shared Service Contract Costs,07/04/2020,296364,2106,Mhr International Uk Ltd
Central Services to the Public,Management & Support Services,Environmental,Transport Related Expenditure,Direct Transport Costs,Diesel,30/04/2020,302662,2115,Wp Group Limited
Central Services to the Public,Management & Support Services,Environmental,Transport Related Expenditure,Direct Transport Costs,Diesel,23/04/2020,301940,2167.5,Wp Group Limited
Planning & Development,Development Control,Planning & Building,Supplies & Services,Grants & Subscriptions,Subscriptions,02/04/2020,297617,2170.79,Labc Co. Uk
Central Services to the Public,Elections,Legal & Democratic,Supplies & Services,"Printing, Stationery & General Office Expenses",External Printing,09/04/2020,298304,2635.39,Financial Data Management Plc
Cultural & Related,Open Spaces,Community and Leisure ,Premises related Expenditure,Grounds Maintenance Costs,Gm - Additional Works,23/04/2020,302198,2217.55,Proludic Ltd
Central Services to the Public,Management & Support Services,Premises & Asset Management,Premises related Expenditure,Energy Costs,Gas,23/04/2020,302232,2226.6,Total Gas & Power Ltd
Housing Services,"Housing strategy, advice and enabling",Housing and Environmental Health ,Supplies & Services,Communications & Computing,Computer Software,28/04/2020,302629,2234.28,Civica Uk Ltd
Central Services to the Public,Management & Support Services,Estates and Economic Development ,Third Party Payments,Private contractors,Main Contractor Costs,02/04/2020,297129,2250,Hemsworth Associates Llp
Central Services to the Public,Elections,Legal & Democratic,Supplies & Services,"Printing, Stationery & General Office Expenses",External Printing,21/04/2020,301339,2251.45,Financial Data Management Plc
Central Services,Corporate & Democratic Core,Corporate & Democratic,Supplies & Services,Services,Project Consultancy - Policy,23/04/2020,301348,2280,Vectos (South) Ltd
Central Services to the Public,Management & Support Services,Environmental,Transport Related Expenditure,Direct Transport Costs,Diesel,23/04/2020,301366,2290.12,Wp Group Limited
Environmental & Regulatory,Waste management,Environmental,Employees,Indirect Employee Expenses,Agency Staff - Waged Posts,23/04/2020,301602,1679.36,24-7 Staffing
Environmental & Regulatory,Waste management,Environmental,Employees,Indirect Employee Expenses,Agency Staff - Waged Posts,23/04/2020,301602,631,24-7 Staffing
Central Services to the Public,Management & Support Services,Premises & Asset Management,Supplies & Services,"Equipment, Furniture & Materials",Purchase Equip + Materials,23/04/2020,302207,2328.22,Openreach Bt
Central Services to the Public,Elections,Legal & Democratic,Supplies & Services,"Printing, Stationery & General Office Expenses",External Printing,21/04/2020,301338,2796.31,Financial Data Management Plc
Central Services to the Public,Management & Support Services,Finance,Supplies & Services,"Printing, Stationery & General Office Expenses",Postage Costs,02/04/2020,296649,2330.28,Whistl Uk Ltd
Central Services to the Public,Management & Support Services,Premises & Asset Management,Premises related Expenditure,Energy Costs,Gas,09/04/2020,297798,2341.15,Total Gas & Power Ltd
Central Services to the Public,Management & Support Services,Premises & Asset Management,Third Party Payments,Other Establishments,Private Contractors,21/04/2020,301353,2350,Andover Roofing Cladding & Maintenance Ltd
Environmental & Regulatory,Waste management,Environmental,Supplies & Services,"Equipment, Furniture & Materials",Purchase Equip + Materials,02/04/2020,289986,2354.44,Egbert H Taylor & Co Ltd
Central Services to the Public,Management & Support Services,Premises & Asset Management,Third Party Payments,Other Establishments,Contract Catering,30/04/2020,301935,2397.49,Edwards And Ward Ltd
Central Services to the Public,Management & Support Services,Legal & Democratic,Supplies & Services,"Printing, Stationery & General Office Expenses",Postage Costs,23/04/2020,300072,2421.3,Dx Network Services Limited
"Highways, Roads & Transport",Parking Services,Plan Pol & Transport,Supplies & Services,Communications & Computing,Computer Software,09/04/2020,296917,2451,Ina Parc Ltd
Central Services,Corporate & Democratic Core,Corporate & Democratic,Supplies & Services,Services,Project Consultancy - Policy,02/04/2020,296538,2474.8,Vectos (South) Ltd
Cultural & Related,Culture & Heritage,Community and Leisure ,Supplies & Services,Miscellaneous Expenses,Booking Of Acts,09/04/2020,298734,2482,Avalon Management Group Ltd
Environmental & Regulatory,Waste management,Environmental,Supplies & Services,"Equipment, Furniture & Materials",Purchase Equip + Materials,23/04/2020,302220,2678.2,Egbert H Taylor & Co Ltd
External Trading Accounts,Business Parks,Premises & Asset Management,Premises related Expenditure,Repairs Alterations & Maintenance of Buildings,Chantry Centre AMP,23/04/2020,302191,3260,Automate Systems
Environmental & Regulatory,Regulatory Services,Housing and Environmental Health ,Supplies & Services,Grants and subscriptions,Capital Grants,30/04/2020,303088,3278.48,Liftech Systems (Se) Ltd
Central Services to the Public,Management & Support Services,IT,Supplies & Services,Services,Project Consultancy - Systems,30/04/2020,302865,2762.5,Transparity
Central Services,Corporate & Democratic Core,Corporate & Democratic,Supplies & Services,Services,Project Consultancy - Policy,02/04/2020,294853,2851,Nexus Planning Ltd
Environmental & Regulatory,Street Cleansing (not chargeable to Highways),Environmental,Employees,Indirect Employee Expenses,Agency Staff - Waged Posts,02/04/2020,297152,466.94,24-7 Staffing
Environmental & Regulatory,Waste management,Environmental,Employees,Indirect Employee Expenses,Agency Staff - Waged Posts,02/04/2020,297152,2402.88,24-7 Staffing
Central Services to the Public,Management & Support Services,Finance,Supplies & Services,Services,Vat Consultancy,02/04/2020,294495,2950,Lavat Consulting Limited T/A Pstax
Central Services,Corporate & Democratic Core,Corporate & Democratic,Supplies & Services,"Printing, Stationery & General Office Expenses",External Printing,21/04/2020,298305,3715,Latcham Direct Ltd
Environmental & Regulatory,Waste management,Environmental,Transport Related Expenditure,Direct Transport Costs,Repair Materials,23/04/2020,301342,117.09,Terberg Matec Uk Limited
Central Services to the Public,Management & Support Services,Environmental,Transport Related Expenditure,Direct Transport Costs,Repair Materials,23/04/2020,301342,3025.76,Terberg Matec Uk Limited
Central Services to the Public,Management & Support Services,HR Services,Third Party Payments,Other Local Authorities,Shared Service Contract Costs,02/04/2020,297817,3246,Mhr International Uk Ltd
Central Services to the Public,Management & Support Services,IT,Supplies & Services,Communications & Computing,Communication Links,09/04/2020,296997,3252,Virgin Media Payments Ltd
Environmental & Regulatory,Waste management,Environmental,Employees,Indirect Employee Expenses,Agency Staff - Waged Posts,23/04/2020,302214,2888.99,24-7 Staffing
Environmental & Regulatory,Waste management,Environmental,Employees,Indirect Employee Expenses,Agency Staff - Waged Posts,23/04/2020,302214,372.38,24-7 Staffing
Cultural & Related,Open Spaces,Environmental,Supplies & Services,Miscellaneous Expenses,Vehicle insurance claims,23/04/2020,301846,3965,Stannah Management Services
Environmental & Regulatory,Regulatory Services,Housing and Environmental Health ,Supplies & Services,Grants and subscriptions,Capital Grants,09/04/2020,299210,3976.07,Hampshire Mobility Services
Environmental & Regulatory,Regulatory Services,Housing and Environmental Health ,Supplies & Services,Grants and subscriptions,Capital Grants,08/04/2020,299095,4130.3,A & E Builders
Environmental & Regulatory,Street Cleansing (not chargeable to Highways),Environmental,Employees,Indirect Employee Expenses,Agency Staff - Waged Posts,09/04/2020,299054,378.6,24-7 Staffing
Environmental & Regulatory,Waste management,Environmental,Employees,Indirect Employee Expenses,Agency Staff - Waged Posts,09/04/2020,299054,2536.29,24-7 Staffing
Environmental & Regulatory,Waste management,Environmental,Employees,Indirect Employee Expenses,Agency Staff - Waged Posts,09/04/2020,299054,558.31,24-7 Staffing
Environmental & Regulatory,Waste management,Environmental,Supplies & Services,"Equipment, Furniture & Materials",Purchase Equip + Materials,23/04/2020,289987,3531.66,Egbert H Taylor & Co Ltd
Central Services to the Public,Management & Support Services,IT,Supplies & Services,Communications & Computing,Purchase Of Telephones ,02/04/2020,296627,3544,Nuvola Distribution Ltd
Environmental & Regulatory,Regulatory Services,Legal & Democratic,Supplies & Services,"Equipment, Furniture & Materials",Purchase Equip + Materials,09/04/2020,299049,3179.5,Newauto Ltd T/A Mogo (Uk)
Environmental & Regulatory,Regulatory Services,Legal & Democratic,Supplies & Services,"Equipment, Furniture & Materials",Purchase Equip + Materials,09/04/2020,299049,420,Newauto Ltd T/A Mogo (Uk)
External Trading Accounts,Business Parks,Premises & Asset Management,Supplies & Services,Services,Professional Fees,02/04/2020,296888,3625,Smith Price Llp
Cultural & Related,Recreation & Sport,Community and Leisure ,Supplies & Services,Grants and subscriptions,Capital Grants,02/04/2020,297616,4393.91,Andover Foodbank
Central Services to the Public,Local Tax Collection,Revenues,Supplies & Services,Communications & Computing,Computer Software,30/04/2020,302606,3750,Northgate Public Services Uk Ltd
External Trading Accounts,Business Parks,Premises & Asset Management,Premises related Expenditure,Repairs Alterations & Maintenance of Buildings,Building Maint - Non Estates,23/04/2020,301574,810.07,Corrigenda Ltd
Cultural & Related,Culture & Heritage,Premises & Asset Management,Premises related Expenditure,Repairs Alterations & Maintenance of Buildings,Building Maint - Non Estates,23/04/2020,301574,1702.11,Corrigenda Ltd
"Highways, Roads & Transport",Parking Services,Plan Pol & Transport,Premises related Expenditure,Repairs Alterations & Maintenance of Buildings,Building Maint - Non Estates,23/04/2020,301574,1531.11,Corrigenda Ltd
Environmental & Regulatory,Regulatory Services,Housing and Environmental Health ,Supplies & Services,Grants and subscriptions,Capital Grants,22/04/2020,302262,4877.56,A & E Builders
External Trading Accounts,Business Parks,Premises & Asset Management,Supplies & Services,Services,Professional Fees,23/04/2020,301597,4139.18,Stratfords Commercial
Planning & Development,Economic Development,Planning Policy & Economic Development ,Supplies & Services,Grants & Subscriptions,Contributions,02/04/2020,293717,5000,Hampshire County Council
Central Services to the Public,Local Tax Collection,Revenues,Supplies & Services,"Printing, Stationery & General Office Expenses",Postage Costs,30/04/2020,300065,2095.72,Latcham Direct Ltd
Central Services to the Public,Local Tax Collection,Revenues,Supplies & Services,"Printing, Stationery & General Office Expenses",Postage Costs,30/04/2020,300065,2095.71,Latcham Direct Ltd
Central Services to the Public,Management & Support Services,IT,Employees,Indirect Employee Expenses,Temporary Staff,16/04/2020,301346,4200,Vector Resourcing Ltd
Environmental & Regulatory,Regulatory Services,Housing and Environmental Health ,Supplies & Services,Grants and subscriptions,Capital Grants,30/04/2020,303089,5066.48,Bartram Building Maintenance Services
Central Services to the Public,Management & Support Services,Environmental,Transport Related Expenditure,Direct Transport Costs,Diesel,23/04/2020,301365,4392,Wp Group Limited
Central Services to the Public,Management & Support Services,Estates and Economic Development ,Third Party Payments,Private contractors,Main Contractor Costs,30/04/2020,302864,4633.07,Fernden Construction (Winchester) Ltd
Cultural & Related,Open Spaces,Environmental,Premises related Expenditure,Water Services,Water And Sewerage Charges,28/04/2020,301570,4650,Aquam Water Services
Central Services to the Public,Management & Support Services,Environmental,Transport Related Expenditure,Direct Transport Costs,Diesel,16/04/2020,299072,3585.2,Wp Group Limited
Central Services to the Public,Management & Support Services,Environmental,Transport Related Expenditure,Direct Transport Costs,Red Derv,16/04/2020,299072,1130.22,Wp Group Limited
Central Services to the Public,Management & Support Services,HR Services,Third Party Payments,Other Local Authorities,Shared Service Contract Costs,02/04/2020,297815,4734,Mhr International Uk Ltd
Central Services,Corporate & Democratic Core,Corporate & Democratic,Supplies & Services,"Printing, Stationery & General Office Expenses",Postage Costs,21/04/2020,301341,4736.48,Latcham Direct Ltd
Central Services to the Public,Management & Support Services,Environmental,Transport Related Expenditure,Direct Transport Costs,Vehicles and Plant,23/04/2020,302197,4739,T H White Ltd
Central Services to the Public,Management & Support Services,Premises & Asset Management,Premises related Expenditure,Repairs Alterations & Maintenance of Buildings,Building Maint - Non Estates,23/04/2020,301850,4801.56,Tsg Building Services Plc
Environmental & Regulatory,Waste management,Environmental,Transport Related Expenditure,Direct Transport Costs,Repair Materials,23/04/2020,301571,4785.17,Dennis Eagle Ltd
Central Services to the Public,Management & Support Services,Environmental,Transport Related Expenditure,Direct Transport Costs,Repair Materials,23/04/2020,301571,111.15,Dennis Eagle Ltd
"Highways, Roads & Transport",Parking Services,Plan Pol & Transport,Transport Related Costs,Management Fee,Car Park charges,30/04/2020,300064,4962.88,Park Now Limited
Central Services to the Public,Management & Support Services,Finance,Supplies & Services,"Printing, Stationery & General Office Expenses",Postage Costs,21/04/2020,301355,5984.16,Pitney Bowes Limited
Central Services to the Public,Elections,Legal & Democratic,Supplies & Services,"Printing, Stationery & General Office Expenses",External Printing,28/04/2020,302256,4990.14,Financial Data Management Plc
Central Services to the Public,Management & Support Services,Estates and Economic Development ,Third Party Payments,Private contractors,Main Contractor Costs,09/04/2020,298325,4995,Purbeck Civil Engineering Limited
Central Services to the Public,Management & Support Services,IT,Supplies & Services,Services,Project Consultancy - Systems,23/04/2020,301580,4999.5,Pentest People Ltd
Central Services to the Public,Management & Support Services,Environmental,Transport Related Expenditure,Direct Transport Costs,Diesel,30/04/2020,302648,5037.84,Wp Group Limited
Central Services to the Public,Management & Support Services,Premises & Asset Management,Premises related Expenditure,Repairs Alterations & Maintenance of Buildings,Planned Maintenance - Non Est,16/04/2020,301378,5121.3,Clearwater 2010 Ltd
External Trading Accounts,Business Parks,Premises & Asset Management,Premises related Expenditure,Cleaning and domestic supplies,Contract Cleaning - Non Estates,23/04/2020,301931,5140.77,Hi-Spec Facilities Services Plc
Planning & Development,Community Development,Community and Leisure ,Supplies & Services,Communications & Computing,Computer Software,07/04/2020,296624,5250,Fluent Technology Ltd
Central Services,Corporate & Democratic Core,Corporate & Democratic,Supplies & Services,Grants & Subscriptions,Subscriptions,30/04/2020,302218,5470,South East Employers
External Trading Accounts,Business Parks,Premises & Asset Management,Premises related Expenditure,Repairs Alterations & Maintenance of Buildings,Chantry Centre AMP,16/04/2020,300071,5471.07,Hi Tec Roof Systems Ltd
Planning & Development,Development Control,Planning & Building,Supplies & Services,Services,Project Consultancy - Policy,02/04/2020,295900,5676,Hampshire County Council
Central Services to the Public,Management & Support Services,Environmental,Transport Related Expenditure,Direct Transport Costs,Diesel,16/04/2020,298309,5813.19,Wp Group Limited
Cultural & Related,Open Spaces,Community and Leisure ,Third Party Payments,Private contractors,Main Contractor Costs,16/04/2020,301314,5836,Personal Data - Data Protection Act 1998
Cultural & Related,Tourism,Planning Policy & Economic Development ,Supplies & Services,Services,Project Consultancy - Policy,02/04/2020,296892,6000,Rjs Associates Ltd
Central Services to the Public,Management & Support Services,Environmental,Transport Related Expenditure,Direct Transport Costs,Vehicles and Plant,23/04/2020,302196,6195,T H White Ltd
Planning & Development,Planning Policy,Plan Pol & Transport,Supplies & Services,Services,Project Consultancy - Policy,23/04/2020,302297,6219.06,Purcell Architecture Ltd
Central Services to the Public,Management & Support Services,IT,Supplies & Services,Communications & Computing,Software Maintenance,30/04/2020,296359,6692.74,Phoenix Software Ltd
Environmental & Regulatory,Waste management,Environmental,Supplies & Services,"Equipment, Furniture & Materials",Purchase Equip + Materials,30/04/2020,302668,6780,Craemer Uk Ltd
Central Services to the Public,Management & Support Services,IT,Supplies & Services,Communications & Computing,Computer Software,16/04/2020,300073,7200,Avworx
Central Services to the Public,Management & Support Services,Premises & Asset Management,Premises related Expenditure,Repairs Alterations & Maintenance of Buildings,General Repairs,23/04/2020,302221,7250,Coombes Forestry Limited
Central Services to the Public,Management & Support Services,Legal & Democratic,Supplies & Services,Grants & Subscriptions,Subscriptions,28/04/2020,289203,7373.66,Thomson Reuters
Central Services to the Public,Management & Support Services,IT,Supplies & Services,"Equipment, Furniture & Materials",IT Supp and Serv AMP,16/04/2020,295731,7416,Bt Business Direct
Housing Services,Homelessness,Housing and Environmental Health ,Supplies & Services,Grants & Subscriptions,Grants,02/04/2020,296642,9000,Yellow Brick Road Projects
External Trading Accounts,Business Parks,Premises & Asset Management,Premises related Expenditure,Energy Costs,Electricity,23/04/2020,301952,107.13,Hampshire County Council
Cultural & Related,Recreation & Sport,Premises & Asset Management,Premises related Expenditure,Energy Costs,Electricity,23/04/2020,301952,107.79,Hampshire County Council
Cultural & Related,Open Spaces,Community and Leisure ,Premises related Expenditure,Energy Costs,Electricity,23/04/2020,301952,458.29,Hampshire County Council
Cultural & Related,Culture & Heritage,Community and Leisure ,Premises related Expenditure,Energy Costs,Electricity,23/04/2020,301952,125.42,Hampshire County Council
"Highways, Roads & Transport",Highways and roads - maintenance,Plan Pol & Transport,Premises related Expenditure,Energy Costs,Electricity,23/04/2020,301952,161.78,Hampshire County Council
"Highways, Roads & Transport",Parking Services,Plan Pol & Transport,Premises related Expenditure,Energy Costs,Electricity,23/04/2020,301952,6931.64,Hampshire County Council
Central Services to the Public,Management & Support Services,Environmental,Transport Related Expenditure,Direct Transport Costs,Vehicles and Plant,23/04/2020,302216,9850,Hunt Forest Group Ltd
Environmental & Regulatory,Regulatory Services,Housing and Environmental Health ,Supplies & Services,Grants and subscriptions,Capital Grants,02/04/2020,297813,10066.43,Lifestyle Solutions
Planning & Development,Planning Policy,Plan Pol & Transport,Supplies & Services,Services,Professional Fees,02/04/2020,296543,8749,Land Use Consultants Ltd
Central Services to the Public,Management & Support Services,IT,Employees,Indirect Employee Expenses,Temporary Staff,16/04/2020,301347,8900,Vector Resourcing Ltd
Central Services to the Public,Management & Support Services,Legal & Democratic,Supplies & Services,Grants & Subscriptions,Subscriptions,02/04/2020,294464,9234.1,Thomson Reuters
Central Services to the Public,Elections,Legal & Democratic,Supplies & Services,"Printing, Stationery & General Office Expenses",External Printing,28/04/2020,302253,11226.66,Financial Data Management Plc
Central Services,Corporate & Democratic Core,Corporate & Democratic,Supplies & Services,Miscellaneous Expenses,External Audit Fees,30/04/2020,302993,10170,Ernst & Young Llp
Central Services to the Public,Management & Support Services,Finance,Employees,Indirect Employee Expenses,Agency Staff - Waged Posts,09/04/2020,299162,12985.16,Hampshire County Council
Cultural & Related,Open Spaces,Community and Leisure ,Premises related Expenditure,Grounds Maintenance Costs,Gm - Additional Works,02/04/2020,296637,11354.95,Proludic Ltd
Central Services to the Public,Management & Support Services,Finance,Supplies & Services,Services,Professional Fees,28/04/2020,298293,11819,Dc Commercial Solicitors
Cultural & Related,Regulatory Services,Community and Leisure ,Third Party Payments,Private contractors,Main Contractor Costs,23/04/2020,302298,14449.5,Over Wallop Parish Council
External Trading Accounts,Business Parks,Premises & Asset Management,Premises related Expenditure,Grounds Maintenance Costs,Non Contract Tree Works,02/04/2020,295766,179.46,Gristwood & Toms Ltd
Cultural & Related,Open Spaces,Community and Leisure ,Premises related Expenditure,Grounds Maintenance Costs,Non Contract Tree Works,02/04/2020,295766,102.07,Gristwood & Toms Ltd
Cultural & Related,Open Spaces,Community and Leisure ,Premises related Expenditure,Grounds Maintenance Costs,Snagging Works,02/04/2020,295766,2349.77,Gristwood & Toms Ltd
Cultural & Related,Open Spaces,Community and Leisure ,Premises related Expenditure,Repairs Alterations & Maintenance of Buildings,Estates premises costs - AMP,02/04/2020,295766,7044.73,Gristwood & Toms Ltd
"Highways, Roads & Transport",Parking Services,Plan Pol & Transport,Premises related Expenditure,Grounds Maintenance Costs,Non Contract Tree Works,02/04/2020,295766,2399.37,Gristwood & Toms Ltd
External Trading Accounts,Business Parks,Premises & Asset Management,Premises related Expenditure,Rates,Nndr,23/04/2020,302303,14777.87,Test Valley Borough Council
Central Services to the Public,Elections,Legal & Democratic,Supplies & Services,"Printing, Stationery & General Office Expenses",External Printing,28/04/2020,302255,14969.1,Financial Data Management Plc
Planning & Development,Planning Policy,Plan Pol & Transport,Supplies & Services,Services,Project Consultancy - Policy,23/04/2020,301577,14734,Footprint Ecology
Planning & Development,Development Control,Planning & Building,Supplies & Services,Miscellaneous Expenses,Compensation Claims,30/04/2020,303085,20000,Lewis Silkin Llp
Environmental & Regulatory,Regulatory Services,Housing and Environmental Health ,Supplies & Services,Grants and subscriptions,Capital Grants,30/04/2020,303087,20658.2,Rh Collings & Son
Central Services to the Public,Management & Support Services,Environmental,Transport Related Expenditure,Direct Transport Costs,Vehicles and Plant,02/04/2020,296632,17225,Hunt Forest Group Ltd
Central Services to the Public,Management & Support Services,IT,Supplies & Services,"Equipment, Furniture & Materials",IT Supp and Serv AMP,16/04/2020,296333,18480,Bt Business Direct
Central Services to the Public,Management & Support Services,Environmental,Transport Related Expenditure,Direct Transport Costs,Vehicles and Plant,23/04/2020,301603,18495,Oakes Bros Ltd
Cultural & Related,Culture & Heritage,Community and Leisure ,Supplies & Services,Grants & Subscriptions,Grants,30/04/2020,302627,22233,King Johns House And Tudor Cottage Trust Ltd
Central Services to the Public,Management & Support Services,HR Services,Third Party Payments,Other Local Authorities,Shared Service Contract Costs,30/04/2020,296001,18592.28,Hampshire County Council
Environmental & Regulatory,Regulatory Services,Housing and Environmental Health ,Supplies & Services,Communications & Computing,Computer Software,02/04/2020,297134,18663,Bre Group
Central Services,Corporate & Democratic Core,Corporate & Democratic,Supplies & Services,Services,Professional Fees,23/04/2020,301590,20656,Hemingwaydesign
Cultural & Related,Recreation & Sport,Community and Leisure ,Supplies & Services,Grants and subscriptions,Capital Grants,02/04/2020,297615,24995,Lockerley Parish Council
Central Services to the Public,Management & Support Services,IT,Supplies & Services,"Equipment, Furniture & Materials",IT Supp and Serv AMP,02/04/2020,296879,22515,Internal System Ltd
Central Services to the Public,Management & Support Services,IT,Supplies & Services,Communications & Computing,Software Maintenance,16/04/2020,301343,24466,Esri (Uk) Ltd
Central Services to the Public,Elections,Legal & Democratic,Supplies & Services,"Printing, Stationery & General Office Expenses",External Printing,28/04/2020,302254,30047.82,Financial Data Management Plc
Cultural & Related,Open Spaces,Community and Leisure ,Third Party Payments,Private contractors,Main Contractor Costs,30/04/2020,303002,23690,The Hampshire & Iow Wildlife Trust
Cultural & Related,Open Spaces,Community and Leisure ,Premises related Expenditure,Grounds Maintenance Costs,Gm - Additional Works,30/04/2020,303002,1509,The Hampshire & Iow Wildlife Trust
Central Services to the Public,Local Tax Collection,Revenues,Supplies & Services,"Printing, Stationery & General Office Expenses",External Printing,30/04/2020,300066,25879.51,Latcham Direct Ltd
Central Services to the Public,Management & Support Services,Revenues,Supplies & Services,Communications & Computing,Software Maintenance,23/04/2020,302223,26625,Abavus Limited
Central Services,Corporate & Democratic Core,Corporate & Democratic,Supplies & Services,Communications & Computing,Computer Hardware,09/04/2020,298288,37487.36,Advanced Business Solutions
Cultural & Related,Recreation & Sport,Community and Leisure ,Premises related Expenditure,Grounds Maintenance Costs,Gm - Additional Works,09/04/2020,296899,1455.47,Gristwood & Toms Ltd
Cultural & Related,Open Spaces,Community and Leisure ,Premises related Expenditure,Grounds Maintenance Costs,Non Contract Tree Works,09/04/2020,296899,604.33,Gristwood & Toms Ltd
Cultural & Related,Open Spaces,Community and Leisure ,Premises related Expenditure,Grounds Maintenance Costs,Non Contract Tree Works,09/04/2020,296899,2203.86,Gristwood & Toms Ltd
Cultural & Related,Open Spaces,Community and Leisure ,Premises related Expenditure,Repairs Alterations & Maintenance of Buildings,Estates premises costs - AMP,09/04/2020,296899,34806.49,Gristwood & Toms Ltd
"Highways, Roads & Transport",Parking Services,Plan Pol & Transport,Premises related Expenditure,Repairs Alterations & Maintenance of Buildings,Car Park General Repairs,09/04/2020,296899,608.4,Gristwood & Toms Ltd
External Trading Accounts,Business Parks,Premises & Asset Management,Supplies & Services,Services,Professional Fees,16/04/2020,299057,44782.47,Kier Ventures Ltd
External Trading Accounts,Business Parks,Premises & Asset Management,Supplies & Services,Services,Professional Fees,16/04/2020,299058,45870.11,Kier Ventures Ltd
External Trading Accounts,Business Parks,Premises & Asset Management,Supplies & Services,Services,Professional Fees,16/04/2020,301388,45870.11,Kier Ventures Ltd
Central Services to the Public,Management & Support Services,Estates and Economic Development ,Third Party Payments,Private contractors,Main Contractor Costs,30/04/2020,302610,47089.6,Elevate Uk Lifts Ltd
Planning & Development,Community Development,Community and Leisure ,Supplies & Services,Grants & Subscriptions,Grants,02/04/2020,297816,56659.25,Citizen'S Advice Test Valley
Cultural & Related,Recreation & Sport,Community and Leisure ,Third Party Payments,Private contractors,Main Contractor Costs,09/04/2020,299085,51652.91,Places For People Leisure Ltd - Developments
Central Services to the Public,Local Tax Collection,Revenues,Supplies & Services,Miscellaneous Expenses,Other Miscellaneous Costs,21/04/2020,301567,54573.5,Andover Town Centre Bid Ltd
Environmental & Regulatory,Community Safety,Housing and Environmental Health ,Support Services,IT,IT Hardware costs,23/04/2020,301572,77385.88,Dssl Group Ltd
"Highways, Roads & Transport",Highways and roads - Improvements,Plan Pol & Transport,Supplies & Services,Grants & Subscriptions,Contributions,09/04/2020,297006,146600,Hampshire County Council
